bitfinex/quotes_SOLUSD_20250201
["timestamp","ask_amount","ask_price","bid_price","bid_amount"]
[1738375538340,6.6545,231.79,231.73,0.03]
[1738375565711,6.6545,231.79,231.74,6.87061911]
[1738375565873,0.063,231.79,231.74,6.87061911]
[1738375566083,0.063,231.79,231.73,6.90061911]
[1738375566592,0.063,231.79,231.73,0.03]
[1738375566797,0.063,231.79,231.73,6.90061911]
[1738375566998,0.063,231.79,231.75,6.87061911]
[1738375567692,0.063,231.79,231.77,6.87061911]
[1738375568608,0.063,231.79,231.77,11.18511911]
[1738375570112,0.063,231.79,231.73,0.03]
[1738375570113,0.063,231.79,231.78,6.87061911]
[1738375570992,0.063,231.79,231.77,2.94]
[1738375577284,0.063,231.79,231.77,7.2546]
[1738375577482,0.063,231.79,231.77,14.12521911]
[1738375577678,0.063,231.79,231.78,6.87061911]
[1738375578505,0.063,231.79,231.78,11.18501911]
[1738375579103,0.063,231.79,231.78,4.3144]
[1738375580494,0.063,231.79,231.78,11.18501911]
[1738375586226,7.6751,231.91,231.79,1.6105]
[1738375586227,0.063,231.91,231.79,1.6105]
[1738375586509,0.063,231.91,231.9,6.87061911]
[1738375587607,0.063,231.91,231.9,11.18281911]
[1738375589401,0.063,231.91,231.9,24.59466764]
[1738375592998,1.664,232.03,231.92,13.41184853]
[1738375593212,1.664,232.03,232.0,6.87061911]
[1738375593213,0.063,232.03,232.0,6.87061911]
[1738375593411,0.063,232.03,232.01,6.87061911]
[1738375594005,0.063,232.03,232.02,6.87061911]
[1738375594208,0.063,232.03,232.02,11.18051911]
[1738375597091,0.063,232.03,232.02,24.59236764]
[1738375599917,0.063,232.06,232.02,24.59236764]
[1738375600125,0.063,232.06,232.05,20.28246764]
[1738375600320,0.063,232.06,232.05,20.9285376]
[1738375600815,0.063,232.12,232.06,13.41184853]
[1738375601022,0.063,232.12,232.11,6.87061911]
[1738375601322,0.063,232.12,232.11,11.17891911]
[1738375604801,0.063,232.12,232.09,4.3085]
[1738375605000,0.063,232.12,232.07,7.2288]
[1738375606221,0.063,232.12,232.07,14.09941911]
[1738375608920,0.063,232.12,232.09,4.3086]
[1738375609312,0.063,232.12,232.09,11.17921911]
[1738375609510,0.063,232.12,232.1,6.87061911]
[1738375610829,0.063,232.12,232.11,4.3083]
[1738375612217,0.063,232.12,232.11,6.87061911]
[1738375613328,0.063,232.12,232.11,11.17891911]
[1738375613708,0.063,232.12,232.11,4.3083]
[1738375615328,0.063,232.12,232.11,6.87061911]
[1738375616729,0.063,232.12,232.1,20.28246764]
[1738375617030,0.063,232.12,232.11,4.3083]
[1738375617610,0.063,232.12,232.11,11.17891911]
[1738375618409,0.063,232.12,232.09,11.17911911]
[1738375618619,0.063,232.12,232.07,7.2288]
[1738375619934,0.063,232.12,232.07,2.92]
[1738375620119,8.2801,232.12,232.01,4.3101]
[1738375620325,8.2801,232.12,232.02,2.9]
[1738375621917,8.2801,232.12,232.02,7.2099]
[1738375622418,8.2801,232.12,232.04,6.87061911]
[1738375623638,8.2801,232.12,232.06,0.03]
[1738375631720,8.2801,232.12,232.07,6.87061911]
[1738375633024,1.7241,232.12,232.08,6.87061911]
[1738375633226,0.063,232.12,232.09,6.87061911]
[1738375634345,0.063,232.12,232.1,6.87061911]
[1738375635938,0.063,232.12,232.09,6.87061911]
[1738375636121,0.063,232.12,232.07,6.87061911]
[1738375637120,0.063,232.12,232.07,11.17951911]
[1738375638244,0.063,232.12,232.06,0.03]
[1738375641633,0.063,232.12,232.06,10.73491949]
[1738375642524,0.063,232.12,232.06,0.03]
[1738375643262,0.063,232.12,232.08,10.70491949]
[1738375645259,0.063,232.12,232.08,15.01371949]
[1738375646756,0.063,232.12,232.06,10.73491949]
[1738375646972,0.063,232.12,232.06,0.03]
[1738375653836,0.063,232.12,232.11,10.70491949]
[1738375655340,0.04335432,232.16,232.11,15.01321949]
[1738375656769,0.04335432,232.16,232.1,4.3084]
[1738375658072,0.04335432,232.16,232.09,15.01351949]
[1738375659672,0.04335432,232.16,232.11,10.70491949]
[1738375660177,0.04335432,232.16,232.11,15.01311949]
[1738375660657,0.04335432,232.16,232.11,10.70491949]
[1738375661743,0.04335432,232.16,232.1,6.84636133]
[1738375663998,0.04335432,232.16,232.11,4.3083]
[1738375664173,0.04335432,232.16,232.12,6.84636133]
[1738375664683,0.04335432,232.16,232.11,4.3083]
[1738375665849,0.04335432,232.16,232.1,11.15476133]
[1738375666056,0.04335432,232.16,232.1,4.3084]
[1738375666383,0.04335432,232.16,232.08,6.84636133]
[1738375666552,0.04335432,232.16,232.08,11.15506133]
[1738375671693,0.04335432,232.16,232.06,0.03]
[1738375672057,6.2226,232.15,232.06,0.03]
[1738375674011,26.57347612,232.33,232.15,1.51]
[1738375674189,26.57347612,232.33,232.19,6.84636133]
[1738375674364,6.62761903,232.24,232.12,6.84636133]
[1738375674676,6.62761903,232.24,232.1,9.80636133]
[1738375674875,0.35329604,232.23,232.1,2.96]
[1738375675067,6.62761903,232.24,232.1,2.96]
[1738375675457,0.35329604,232.23,232.1,2.96]
[1738375676377,13.41184853,232.25,232.1,2.96]
[1738375676378,0.35329604,232.24,232.1,2.96]
[1738375676572,0.35329604,232.24,232.09,4.3085]
[1738375676882,0.35329604,232.24,232.1,6.84636133]
[1738375677189,7.8794,232.26,232.14,11.15406133]
[1738375679691,7.8794,232.26,232.19,6.84636133]
[1738375679876,7.8794,232.26,232.21,6.84636133]
[1738375680572,0.063,232.28,232.23,6.84636133]
[1738375680773,0.063,232.28,232.21,6.84636133]
[1738375681684,0.063,232.28,232.23,6.84636133]
[1738375682777,0.063,232.28,232.27,6.84636133]
[1738375683278,0.063,232.28,232.27,20.90374035]
[1738375684011,0.063,232.28,232.27,25.20904035]
[1738375684394,0.063,232.28,232.27,159.90904035]
[1738375684594,0.063,232.28,232.27,159.26350986]
[1738375685677,0.063,232.28,232.27,145.37707798]
[1738375686186,0.063,232.28,232.27,158.78892651]
[1738375688903,0.063,232.28,232.27,159.03990651]
[1738375689203,0.063,232.28,232.27,159.29088651]
[1738375689701,0.063,232.28,232.27,163.60688651]
[1738375689907,0.063,232.28,232.27,159.29088651]
[1738375692782,0.063,232.28,232.27,24.08892651]
[1738375693007,0.063,232.28,232.27,158.78892651]
[1738375693312,0.063,232.28,232.27,134.7]
[1738375693891,0.063,232.28,232.25,10.67707798]
[1738375694102,0.063,232.28,232.2,145.37707798]
[1738375694291,0.063,232.28,232.2,10.67707798]
[1738375694907,0.063,232.28,232.21,10.67707798]
[1738375695109,0.063,232.28,232.25,10.67707798]
[1738375695301,0.063,232.28,232.26,10.67707798]
[1738375695496,0.063,232.28,232.27,10.67707798]
[1738375696016,0.063,232.28,232.27,158.78892651]
[1738375696388,0.063,232.28,232.27,24.08892651]
[1738375699191,0.063,232.28,232.27,10.67707798]
[1738375699799,0.063,232.28,232.27,11.32256853]
[1738375700709,0.063,232.28,232.27,29.03971706]
[1738375701705,0.063,232.33,232.29,0.37647]
[1738375701897,0.063,232.33,232.32,34.76600449]
[1738375702097,0.063,232.33,232.32,35.41130667]
[1738375703903,0.063,232.33,232.32,163.73862869]
[1738375704104,0.063,232.33,232.32,163.09332651]
[1738375706107,0.063,232.33,232.32,173.77040449]
[1738375708635,0.063,232.33,232.32,163.09332651]
[1738375712739,0.063,232.33,232.32,173.77040449]
[1738375714633,0.063,232.33,232.32,174.02138449]
[1738375715311,0.063,232.36,232.35,31.17903798]
[1738375715509,0.063,232.36,232.35,179.93604477]
[1738375715715,0.063,232.36,232.35,179.29088651]
[1738375716030,0.063,232.39,232.38,33.41184853]
[1738375716206,0.063,232.39,232.38,44.73402104]
[1738375717014,0.063,232.39,232.38,49.28820104]
[1738375718718,0.063,232.39,232.38,183.98820104]
[1738375718919,0.063,232.39,232.38,184.34310651]
[1738375723025,0.063,232.39,232.38,183.09212651]
[1738375723231,0.063,232.39,232.38,186.03212651]
[1738375723744,0.063,232.39,232.38,163.09212651]
[1738375726719,0.063,232.39,232.38,149.68027798]
[1738375728726,0.063,232.39,232.38,14.98027798]
[1738375734121,0.063,232.39,232.38,28.39212651]
[1738375734647,0.063,232.39,232.38,163.09212651]
[1738375737955,0.063,232.39,232.38,159.24346448]
[1738375738158,0.063,232.39,232.38,141.52841595]
[1738375739661,0.063,232.39,232.38,6.82841595]
[1738375740024,0.063,232.39,232.35,6.82841595]
[1738375740646,0.063,232.39,232.36,6.82841595]
[1738375741944,0.063,232.39,232.37,6.82841595]
[1738375744031,0.063,232.39,232.36,0.03]
[1738375745131,6.4068,232.38,232.36,0.03]
[1738375746327,1.5108,232.37,232.36,0.03]
[1738375746527,1.5108,232.37,232.3,0.03]
[1738375746724,0.35329604,232.36,232.3,0.03]
[1738375747131,6.4068,232.35,232.3,0.03]
[1738375749556,0.35329604,232.34,232.3,0.03]
[1738375750235,6.76009604,232.35,232.3,0.03]
[1738375751458,1.6087,232.34,232.3,0.03]
[1738375751655,0.35329604,232.33,232.3,0.03]
[1738375751843,0.35329604,232.33,232.18,10.68538889]
[1738375752545,6.6502,232.32,232.18,10.68538889]
[1738375752752,0.35329604,232.31,232.18,10.68538889]
[1738375753258,0.35329604,232.31,232.16,10.71538889]
[1738375753444,1.5819,232.29,232.16,10.71538889]
[1738375753646,0.35329604,232.28,232.16,10.71538889]
[1738375754236,0.35329604,232.28,232.16,0.03]
[1738375754656,6.1432,232.27,232.16,0.03]
[1738375754856,0.35329604,232.26,232.16,0.03]
[1738375755862,6.1432,232.27,232.16,0.03]
[1738375756063,6.1432,232.27,232.16,10.71538889]
[1738375756469,6.1432,232.27,232.18,0.03]
[1738375757566,6.49649604,232.27,232.18,0.03]
[1738375762150,6.1432,232.27,232.18,10.71538889]
[1738375763275,6.1432,232.27,232.18,0.03]
[1738375764488,6.1432,232.27,232.18,10.71538889]
[1738375765172,6.1432,232.27,232.18,0.03]
[1738375766667,6.1432,232.27,232.18,10.71538889]
[1738375769681,6.1432,232.27,232.18,6.87210189]
[1738375772487,6.1432,232.27,232.19,6.84210189]
[1738375774687,6.1432,232.27,232.18,0.03]
[1738375775059,0.35329604,232.26,232.18,0.03]
[1738375776894,1.6127,232.24,232.18,0.03]
[1738375777190,0.35329604,232.23,232.18,0.03]
[1738375778885,1.6127,232.24,232.18,0.03]
[1738375787401,1.1127,232.24,232.18,0.03]
[1738375790414,1.46599604,232.24,232.18,0.03]
[1738375790609,1.1127,232.24,232.18,0.03]
[1738375790922,1.1757,232.24,232.18,0.03]
[1738375792492,0.35329604,232.23,232.18,0.03]
[1738375794207,1.1757,232.24,232.18,0.03]
[1738375802689,0.063,232.24,232.22,6.84210189]
[1738375802934,0.063,232.24,232.23,7.48788129]
[1738375803834,0.063,232.24,232.23,155.59972982]
[1738375803996,0.063,232.24,232.23,154.95395042]
[1738375804833,0.063,232.24,232.23,159.25995042]
[1738375805533,0.063,232.3,232.24,14.66282853]
[1738375805700,0.063,232.3,232.29,6.84210189]
[1738375806018,0.063,232.3,232.29,155.59941406]
[1738375806229,0.063,232.3,232.29,154.95395042]
[1738375806694,0.063,232.3,232.29,159.25885042]
[1738375807112,7.93740607,232.41,232.29,159.25885042]
[1738375807435,7.93740607,232.41,232.33,6.84210189]
[1738375808021,7.93740607,232.41,232.32,6.84210189]
[1738375810524,7.93740607,232.41,232.31,6.84210189]
[1738375810734,0.35329604,232.4,232.28,6.84210189]
[1738375810910,0.35329604,232.4,232.26,6.84210189]
[1738375811237,0.35329604,232.4,232.25,6.84210189]
[1738375812117,13.41184853,232.39,232.23,9.74210189]
[1738375812326,0.35329604,232.38,232.23,9.74210189]
[1738375812520,21.27354853,232.37,232.2,6.84210189]
[1738375812723,2.0,232.35,232.16,6.87210189]
[1738375812923,13.41184853,232.33,232.16,6.87210189]
[1738375813121,0.35329604,232.32,232.16,6.87210189]
[1738375813937,13.41184853,232.29,232.16,0.03]
[1738375814232,0.35329604,232.28,232.16,0.03]
[1738375815228,13.76514457,232.29,232.16,0.03]
[1738375815945,14.41184853,232.27,232.16,0.03]
[1738375816141,0.35329604,232.26,232.16,0.03]
[1738375819542,13.76514457,232.29,232.16,0.03]
[1738375819921,13.41184853,232.28,232.16,0.03]
[1738375820128,0.35329604,232.27,232.16,0.03]
[1738375821019,0.35329604,232.28,232.16,0.03]
[1738375821337,1.35329604,232.28,232.16,0.03]
[1738375821929,0.35329604,232.28,232.16,0.03]
[1738375822132,0.35329604,232.29,232.16,0.03]
[1738375822429,13.41184853,232.28,232.16,0.03]
[1738375822632,0.35329604,232.27,232.16,0.03]
[1738375824038,0.35329604,232.28,232.16,0.03]
[1738375825148,0.41629604,232.28,232.16,0.03]
[1738375826053,1.41629604,232.28,232.16,0.03]
[1738375827254,7.8387,232.24,232.16,0.03]
[1738375827554,0.35329604,232.23,232.16,0.03]
[1738375827733,13.41184853,232.22,232.16,0.03]
[1738375827943,0.35329604,232.21,232.16,0.03]
[1738375828376,0.35329604,232.23,232.16,0.03]
[1738375831565,8.19199604,232.24,232.16,0.03]
[1738375831771,7.8387,232.24,232.16,0.03]
[1738375835282,13.41184853,232.22,232.16,0.03]
[1738375835450,0.35329604,232.21,232.16,0.03]
[1738375838672,13.41184853,232.2,232.16,0.03]
[1738375838873,0.35329604,232.19,232.16,0.0001]
[1738375839069,13.41184853,232.18,232.16,0.0001]
[1738375839247,1.0,232.21,232.16,0.0001]
[1738375839248,0.35329604,232.17,232.16,0.0001]
[1738375839452,0.35329604,232.2,232.16,0.0001]
[1738375840059,0.35329604,232.22,232.16,0.0001]
[1738375840265,7.8387,232.24,232.16,0.0001]
[1738375841279,7.8387,232.24,232.16,10.70112477]
[1738375841472,7.8387,232.24,232.16,0.0001]
[1738375842468,7.8387,232.24,232.16,10.70112477]
[1738375842771,7.8387,232.24,232.16,0.0001]
[1738375842958,0.35329604,232.23,232.16,0.0001]
[1738375843163,13.41184853,232.22,232.16,0.0001]
[1738375843358,13.41184853,232.2,232.16,0.0001]
[1738375843678,0.35329604,232.19,232.16,0.0001]
[1738375844761,13.41184853,232.18,232.16,0.0001]
[1738375844963,13.76514457,232.17,232.16,0.0001]
[1738375849890,13.76514457,232.17,232.03,10.55683083]
[1738375849891,13.41184853,232.16,232.03,10.55683083]
[1738375850074,0.35329604,232.15,232.03,10.55683083]
[1738375850890,0.35329604,232.15,232.02,0.03]
[1738375851098,0.35329604,232.17,232.02,0.03]
[1738375854088,0.35329604,232.17,232.03,10.70102477]
[1738375854894,13.41184853,232.16,232.03,10.70102477]
[1738375855190,0.35329604,232.15,232.03,10.70102477]
[1738375855389,0.35329604,232.15,232.04,10.70102477]
[1738375855593,0.35329604,232.18,232.06,10.70102477]
[1738375855987,13.41184853,232.17,232.04,10.70102477]
[1738375856171,0.35329604,232.16,232.04,10.70102477]
[1738375857096,0.35329604,232.17,232.04,10.70102477]
[1738375860209,0.35329604,232.17,232.03,15.01072477]
[1738375860584,8.2941,232.16,232.02,10.73102477]
[1738375860907,0.35329604,232.15,232.03,10.70102477]
[1738375861606,0.35329604,232.15,232.04,10.73102477]
[1738375862482,0.35329604,232.15,232.04,15.04052477]
[1738375863313,8.2941,232.16,232.06,10.70102477]
[1738375863484,8.2941,232.16,232.08,10.70102477]
[1738375863792,0.063,232.17,232.1,10.70102477]
[1738375863998,0.063,232.17,232.09,4.3086]
[1738375863999,0.063,232.17,232.11,10.70102477]
[1738375864400,0.063,232.17,232.1,10.70102477]
[1738375865904,0.063,232.17,232.13,10.70102477]
[1738375867912,0.063,232.17,232.1,10.70102477]
[1738375868611,0.063,232.17,232.07,4.3088]
[1738375868793,0.063,232.17,232.05,10.70102477]
[1738375868999,0.35329604,232.16,232.04,0.03]
[1738375874226,20.97954853,232.15,232.04,0.03]
[1738375874408,13.41184853,232.13,232.04,0.03]
[1738375874629,0.35329604,232.12,232.04,0.03]
[1738375876208,13.41184853,232.11,232.04,0.03]
[1738375876398,7.5677,232.08,232.04,0.03]
[1738375876740,13.41184853,232.06,232.04,0.0001]
[1738375876908,0.35329604,232.05,232.02,0.03]
[1738375877108,0.35329604,232.05,231.94,0.03]
[1738375877903,13.41184853,232.03,231.94,0.03]
[1738375878099,13.41184853,231.99,231.94,0.03]
[1738375878322,0.35329604,231.98,231.94,0.03]
[1738375879027,7.92099604,232.0,231.94,0.03]
[1738375879407,7.5677,232.0,231.94,0.03]
[1738375883334,7.5677,232.05,231.97,10.70102477]
[1738375884607,7.5677,232.05,231.95,10.70102477]
[1738375885004,7.5677,232.05,231.97,0.03]
[1738375888616,0.35329604,232.04,231.97,0.03]
[1738375888816,7.5677,232.05,231.97,0.03]
[1738375889822,0.35329604,232.04,231.97,0.03]
[1738375894538,13.41184853,232.03,231.97,0.03]
[1738375894737,13.41184853,232.01,231.94,0.03]
[1738375894922,0.35329604,232.0,231.94,0.03]
[1738375898759,13.41184853,231.99,231.94,0.03]
[1738375898951,0.35329604,231.98,231.94,0.03]
[1738375899275,2.0,231.99,231.9,0.03]
[1738375899427,13.41184853,231.97,231.9,0.03]
[1738375899755,0.35329604,231.96,231.9,0.03]
[1738375902255,0.35329604,231.98,231.9,0.03]
[1738375903056,13.76514457,232.0,231.9,0.03]
[1738375903440,0.35329604,232.04,231.9,10.73102477]
[1738375903634,0.35329604,232.09,231.93,10.70102477]
[1738375903957,0.41629604,232.06,231.93,10.70102477]
[1738375905858,0.063,232.06,231.93,15.01262477]
[1738375906455,7.92099604,232.05,231.93,10.70102477]
[1738375906964,7.92099604,232.05,231.91,15.01292477]
[1738375907263,13.41184853,232.0,231.9,0.03]
[1738375907469,13.41184853,231.98,231.9,0.03]
[1738375907633,0.35329604,231.97,231.9,0.03]
[1738375907952,0.35329604,231.97,231.91,0.03]
[1738375910756,13.41184853,231.96,231.91,0.03]
[1738375910937,0.35329604,231.95,231.91,0.03]
[1738375911952,13.76514457,231.98,231.91,0.03]
[1738375920461,0.35329604,231.98,231.91,0.03]
[1738375920668,0.35329604,232.0,231.91,0.03]
[1738375921562,13.41184853,232.0,231.91,0.03]
[1738375921772,0.35329604,231.99,231.91,0.03]
[1738375922488,0.35329604,232.04,231.91,0.03]
[1738375923347,13.41184853,232.03,231.91,0.03]
[1738375924548,7.98399604,232.05,231.93,10.70102477]
[1738375924750,7.6307,232.05,231.93,10.70102477]
[1738375927081,1.0,232.03,231.91,0.03]
[1738375927373,13.41184853,232.01,231.91,0.03]
[1738375927590,0.35329604,232.0,231.91,0.03]
[1738375929350,0.35329604,232.04,231.91,0.03]
[1738375929549,1.35329604,232.04,231.91,0.03]
[1738375929777,14.76514457,232.04,231.91,0.03]
[1738375931778,2.0,232.02,231.91,0.03]
[1738375932077,0.063,232.0,231.91,0.03]
[1738375932261,0.35329604,231.99,231.91,0.03]
[1738375938474,0.063,232.0,231.91,0.03]
[1738375938682,0.41629604,232.0,231.91,0.03]
[1738375939201,13.41184853,231.87,231.84,0.03]
[1738375939492,13.41184853,231.87,231.69,10.70102477]
[1738375939493,13.41184853,231.84,231.67,12.28812477]
[1738375939695,0.35329604,231.83,231.67,1.5871]
[1738375939856,13.41184853,231.82,231.67,1.5871]
[1738375940062,0.35329604,231.81,231.67,1.5871]
[1738375940271,0.35329604,231.82,231.68,6.87150062]
[1738375941159,0.35329604,231.82,231.67,1.5871]
[1738375941492,13.41184853,231.81,231.67,1.5871]
[1738375941697,0.35329604,231.8,231.67,1.5871]
[1738375942991,0.35329604,231.8,231.66,10.73725567]
[1738375943395,0.35329604,231.8,231.64,13.67725567]
[1738375943594,6.81159604,231.8,231.68,0.03]
[1738375944456,6.4583,231.8,231.68,0.03]
[1738375946885,6.4583,231.8,231.69,10.73725567]
[1738375947060,6.4583,231.8,231.7,13.41184853]
[1738375950087,6.4583,231.8,231.68,0.03]
[1738375951493,8.0231,231.8,231.68,0.03]
[1738375952194,0.35329604,231.79,231.68,0.03]
[1738375952373,8.0231,231.8,231.68,0.03]
[1738375957573,8.0861,231.8,231.68,0.03]
[1738375960497,8.0861,231.8,231.7,13.41184853]
[1738375960802,8.0861,231.8,231.69,13.41184853]
[1738375963407,8.0861,231.8,231.69,17.72784853]
[1738375963594,8.0861,231.8,231.69,28.4651042]
[1738375963890,8.0861,231.8,231.69,24.59825432]
[1738375969103,0.063,231.8,231.78,13.41184853]
[1738375969414,0.063,231.8,231.77,6.87040579]
[1738375969583,0.063,231.8,231.75,6.87040579]
[1738375970197,0.063,231.8,231.76,13.41184853]
[1738375970509,0.063,231.8,231.75,6.87040579]
[1738375971609,0.063,231.8,231.77,6.87040579]
[1738375971785,0.063,231.8,231.78,13.41184853]
[1738375972502,7.9463,231.79,231.71,6.87040579]
[1738375972822,7.9463,231.79,231.68,0.03]
[1738375973686,7.9463,231.79,231.69,6.87040579]
[1738375974359,7.9463,231.79,231.72,13.41184853]
[1738375974628,0.063,231.8,231.77,13.41184853]
[1738375979132,0.063,231.8,231.76,6.87040579]
[1738375980734,0.063,231.8,231.74,20.28225432]
[1738375984215,0.063,231.8,231.79,20.28225432]
[1738375985434,0.063,231.8,231.79,25.24331396]
[1738375985635,0.063,231.8,231.79,160.19429396]
[1738375985832,0.063,231.8,231.79,160.79841432]
[1738375986149,0.063,231.8,231.79,159.29645432]
[1738375987926,0.0001,231.8,231.79,161.79841432]
[1738375990044,6.433,231.95,231.79,161.79841432]
[1738375990228,6.433,231.95,231.88,6.87040579]
[1738375990921,1.5133,231.96,231.91,6.87040579]
[1738375991128,1.5133,231.96,231.92,6.87040579]
[1738375991441,1.5133,231.96,231.91,13.41184853]
[1738375992524,1.5133,231.96,231.91,20.28225432]
[1738375992836,1.5133,231.96,231.92,13.41184853]
[1738375994942,1.5133,231.96,231.89,6.87040579]
[1738375995124,1.5133,231.96,231.87,6.87040579]
[1738375996644,1.5133,231.96,231.88,13.41184853]
[1738375998246,1.31069842,231.96,231.88,13.41184853]
[1738376004155,1.31069842,231.96,231.85,6.87040579]
[1738376004456,1.31069842,231.96,231.82,134.7]
[1738376004652,1.31069842,231.96,231.81,6.87040579]
[1738376004849,6.0973,231.95,231.81,6.87040579]
[1738376005035,6.45059604,231.95,231.79,6.87040579]
[1738376005240,1.5196,231.94,231.77,6.87040579]
[1738376005554,0.35329604,231.93,231.77,6.87040579]
[1738376006049,1.87289604,231.94,231.78,13.41184853]
[1738376006365,1.87289604,231.94,231.76,4.3148]
[1738376006366,1.87289604,231.94,231.81,13.41184853]
[1738376006855,1.87289604,231.94,231.83,0.03]
[1738376015770,1.5196,231.94,231.83,0.03]
[1738376023341,1.5196,231.94,231.85,6.87040579]
[1738376023542,1.5196,231.94,231.86,13.41184853]
[1738376024045,1.5196,231.94,231.85,6.87040579]
[1738376024046,0.063,231.96,231.92,6.87040579]
[1738376024250,0.063,231.96,231.93,6.87040579]
[1738376025162,0.063,231.96,231.92,6.87040579]
[1738376025543,0.063,231.96,231.93,6.87040579]
[1738376025945,0.063,231.96,231.92,6.87040579]
[1738376026464,0.063,231.96,231.91,20.28225432]
[1738376027158,0.063,231.96,231.91,13.41184853]
[1738376027743,6.0235,231.95,231.83,0.03]
[1738376028053,6.37679604,231.95,231.83,0.03]
[1738376028368,1.5479,231.94,231.83,0.03]
[1738376029149,1.5479,231.94,231.84,13.41184853]
[1738376029468,1.5479,231.94,231.85,7.51715654]
[1738376030173,1.5479,231.94,231.85,0.64675075]
[1738376030958,1.5479,231.94,231.83,0.03]
[1738376031570,1.5479,231.94,231.85,0.03]
[1738376031867,1.90119604,231.94,231.85,0.03]
[1738376032959,7.5612,231.93,231.85,0.03]
[1738376033285,1.6343,231.91,231.85,0.03]
[1738376033566,0.35329604,231.9,231.85,0.03]
[1738376034463,1.98759604,231.91,231.85,0.03]
[1738376035342,1.6343,231.91,231.85,0.03]
[1738376047386,0.35329604,231.9,231.85,0.03]
[1738376047883,1.98759604,231.91,231.85,0.03]
[1738376051777,6.181,231.89,231.85,0.03]
[1738376051959,1.35329604,231.88,231.85,0.03]
[1738376052281,14.96894853,231.87,231.85,0.03]
[1738376052458,0.35329604,231.86,231.85,0.03]
[1738376053679,1.5571,231.87,231.85,0.03]
[1738376059874,1.5571,231.94,231.85,0.03]
[1738376073272,0.063,231.96,231.85,0.03]
[1738376073594,0.41629604,231.96,231.85,0.03]
[1738376074184,0.063,231.96,231.85,13.44184853]
[1738376075967,0.063,231.96,231.87,13.41184853]
[1738376077298,0.063,231.96,231.85,0.03]
[1738376077475,0.063,231.96,231.85,13.44184853]
[1738376078972,0.063,231.96,231.85,14.08855412]
[1738376079800,0.063,231.96,231.85,18.40165412]
[1738376084797,0.063,231.96,231.87,18.72454853]
[1738376085001,0.063,231.96,231.89,13.41184853]
[1738376085905,0.063,231.96,231.89,17.72414853]
[1738376086101,0.063,231.96,231.89,13.41184853]
[1738376086298,0.063,231.96,231.86,1.543]
[1738376088117,0.063,231.96,231.87,13.41184853]
[1738376089699,0.063,231.96,231.86,1.543]
[1738376091486,0.063,231.96,231.85,0.03]
[1738376092006,7.08259604,231.96,231.85,0.03]
[1738376099516,6.7293,231.96,231.85,0.03]
[1738376100227,7.08259604,231.96,231.85,0.03]
[1738376102638,6.7293,231.96,231.85,0.03]
[1738376103138,6.7293,231.96,231.85,13.44184853]
[1738376103505,6.7293,231.96,231.85,0.03]
[1738376110026,0.063,231.96,231.86,0.64670852]
[1738376111340,0.063,231.96,231.87,13.41184853]
[1738376111544,0.063,231.96,231.88,0.64657889]
[1738376113226,0.063,231.96,231.89,13.41184853]
[1738376113532,0.063,231.96,231.91,13.41184853]
[1738376116120,0.063,231.96,231.93,13.41184853]
[1738376117243,0.063,231.96,231.94,0.61700626]
[1738376118148,0.063,231.96,231.95,13.41184853]
[1738376118533,0.063,231.96,231.93,13.41184853]
[1738376119346,0.063,231.96,231.89,2.28037403]
[1738376119853,0.063,231.96,231.9,13.41184853]
[1738376120008,0.063,231.96,231.91,0.64651254]
[1738376123955,0.063,231.96,231.92,13.41184853]
[1738376124126,0.063,231.96,231.93,0.64647133]
[1738376124761,0.063,231.96,231.94,13.41184853]
[1738376125224,0.063,231.96,231.95,0.64646301]
[1738376125567,0.063,231.96,231.95,14.05831154]